fUSD/lending_fUSD_20240825
["ID","MTS","AMOUNT","RATE_DAILY","PERIOD"]
[335934686,1724617840532,-500.0,0.00010929,2]
[335934687,1724617840542,-500.0,0.00010937,2]
[335934688,1724617840552,-500.0,0.00010946,2]
[335934689,1724617840561,-500.0,0.00010955,2]
[335934690,1724617840570,-500.0,0.00010958,2]
[335934691,1724617840579,-500.0,0.00010958,2]
[335934692,1724617840588,-500.0,0.00010958,2]
[335934693,1724617840597,-153.06,0.00010959,2]
[335934694,1724617840606,-159.27,0.00010959,2]
[335934695,1724617840615,-250.0,0.00010959,2]
[335934696,1724617840624,-1500.0,0.00010959,2]
[335934697,1724617840633,-500.0,0.00010964,2]
[335934698,1724617840642,-500.0,0.00010973,2]
[335934699,1724617840651,-500.0,0.00010973,2]
[335934700,1724617840659,-162.08193889,0.0001098,2]
[335934701,1724617840668,-500.0,0.00010981,2]
[335934702,1724617840678,-26293.59126306,0.0001099,3]
[335934703,1724617840690,-1052.6526809,0.0001099,3]
[335934704,1724617840701,-1626.45291562,0.0001099,3]
[335934705,1724617840713,-13930.45000001,0.0001099,3]
[335934706,1724617840724,-1504.411741,0.0001099,3]
[335934707,1724617840742,-4148.35,0.00010862,2]
[335934708,1724617840751,-29109.73699107,0.0001099,3]
[335934709,1724617840762,-971.108,0.0001099,3]
[335934710,1724617840774,-8215.81430112,0.0001099,3]
[335934711,1724617840785,-2466.13155549,0.0001099,3]
[335934712,1724617840796,-460.56973873,0.0001099,3]
[335934713,1724617840806,-992.57555336,0.0001099,3]
[335934714,1724617840818,-859.60446392,0.0001099,3]
[335934715,1724617840829,-1034.355,0.0001099,3]
[335934716,1724617840841,-2198.49212684,0.0001099,3]
[335934717,1724617840853,-359.44640036,0.0001099,3]
[335934718,1724617840864,-1056.7785687,0.0001099,3]
[335934719,1724617840877,-1273.216,0.0001099,3]
[335934725,1724617842956,-500.0,0.00010893,2]
[335934726,1724617842966,-7155.68224347,0.0001099,3]
[335934727,1724617843012,-1314.14552146,0.0001099,3]
[335934728,1724617843025,-4315.10647755,0.0001099,3]
[335934729,1724617843047,-676.96199,0.0001099,3]
[335934730,1724617843058,-5706.9748694,0.0001099,3]
[335934731,1724617843072,-532.36978236,0.0001099,3]
[335934732,1724617843131,-283070.70254513,0.0001099,3]
[335934733,1724617843141,-5284.6116546,0.0001099,3]
[335934734,1724617843152,-1664.07607832,0.0001099,3]
[335934735,1724617843243,-7805.61716964,0.0001099,3]
[335934736,1724617843254,-6021.9,0.0001099,3]
[335934737,1724617843265,-500.0,0.0001099,3]
[335934738,1724617843276,-275.452,0.0001099,3]
[335934743,1724617845901,-253.90374581,0.0001099,3]
[335934744,1724617845912,-726.52366915,0.0001099,3]
[335934745,1724617845923,-965.71228603,0.0001099,3]
[335934746,1724617845936,-10996.24497985,0.0001099,3]
[335934747,1724617845961,-2265.95848343,0.0001099,3]
[335934748,1724617845972,-254.584,0.0001099,3]
[335934749,1724617845985,-1122.59869064,0.0001099,3]
[335934750,1724617845996,-258.90026698,0.0001099,3]
[335934751,1724617846019,-27500.75117138,0.0001099,3]
[335934752,1724617846030,-7659.5181716,0.0001099,3]
[335934753,1724617846041,-4481.46949273,0.0001099,3]
[335934754,1724617846053,-3567.11591837,0.0001099,3]
[335934755,1724617851878,-641.60949156,0.0001099,3]
[335934756,1724617851889,-59732.58149311,0.0001099,3]
[335934757,1724617851900,-315.00000008,0.0001099,3]
[335934758,1724617851911,-1011.36027468,0.0001099,3]
[335934759,1724617851921,-2557.82544,0.0001099,3]
[335934760,1724617851933,-37811.35699527,0.0001099,3]
[335934761,1724617851943,-2826.19400833,0.0001099,3]
[335934762,1724617851954,-1026.0,0.0001099,3]
[335934763,1724617851970,-1549.39999999,0.0001099,3]
[335934764,1724617851980,-6540.0001936,0.0001099,3]
[335934765,1724617867145,1346.8792,9.937e-05,2]
[335934767,1724617883169,300.0,0.00027,120]
[335934769,1724618064367,23900.0,9.934e-05,2]
[335934770,1724618103226,488.80163789,0.00027,120]
[335934771,1724618145094,172.1,9.928e-05,2]
[335934772,1724618192914,6321.01967426,9.928e-05,2]
[335934773,1724618219761,402.75,8.219e-05,2]
[335934777,1724618295841,500.0,0.00027,120]
[335934778,1724618299561,2201.68475789,9.962e-05,2]
[335934779,1724618306327,500.0,0.00027,120]
[335934780,1724618332227,1299.54898484,9.962e-05,2]
[335934781,1724618333760,514.39539454,0.00027,120]
[335934782,1724618343191,3072.98,9.91e-05,2]
[335934783,1724618372124,331.60750855,0.00027,120]
[335934786,1724618501180,531.42,9.892e-05,2]
[335934788,1724618530816,550.13,9.892e-05,2]
[335934789,1724618530838,449.87,9.892e-05,2]
[335934790,1724618580578,258.6,9.894e-05,2]
[335934791,1724618669165,3941.83520094,0.00010009,2]
[335934792,1724618734305,1050.0,0.0001,2]
[335934793,1724618737198,162.85453106,0.00010009,2]
[335934794,1724618741032,289.95309064,0.00010009,2]
[335934795,1724618741746,170.69495323,0.00010009,2]
[335934796,1724618742219,1051.05102404,0.00010009,2]
[335934797,1724618746984,416.00901907,0.00010009,2]
[335934798,1724618755946,370.03359308,0.00010009,2]
[335934799,1724618758216,382.61,8.219e-05,2]
[335934800,1724618761834,2386.8149171,0.00010009,2]
[335934801,1724618783188,485.15804996,0.00010009,2]
[335934802,1724618783578,300.0,0.00027,120]
[335934803,1724618912146,445.17380546,0.00027,120]
[335934819,1724619012650,574.86,9.851e-05,2]
[335934824,1724619032044,-527.19740296,0.00010097,2]
[335934825,1724619032053,-238.3,0.00010234,2]
[335934826,1724619032061,-300.0,0.00010425,2]
[335934827,1724619032069,-9665.05261172,0.00010426,2]
[335934828,1724619032079,-334.94738828,0.00010426,2]
[335934829,1724619032088,-382.61,0.00010469,2]
[335934830,1724619032096,-165.99256172,0.00010505,2]
[335934831,1724619032110,-846.47,0.00010505,2]
[335934832,1724619032120,-350.2299999,0.00010505,2]
[335934833,1724619032130,-11935.23239639,0.00010505,2]
[335934834,1724619032166,-4279.49152017,0.00010505,2]
[335934835,1724619032280,-888.94435291,0.00010505,2]
[335934836,1724619032338,-6428.53666521,0.00010505,2]
[335934837,1724619032349,-2423.11071755,0.00010505,2]
[335934838,1724619032361,-2777.64856701,0.00010505,2]
[335934839,1724619032373,-5652.55733713,0.00010505,2]
[335934840,1724619032383,-500.0,0.00010665,2]
[335934841,1724619032394,-500.0,0.00010673,2]
[335934842,1724619032404,-500.0,0.00010682,2]
[335934843,1724619032413,-500.0,0.00010691,2]
[335934844,1724619032424,-35748.21411799,0.00010698,2]
[335934845,1724619032435,-1140.4755335,0.00010699,2]
[335934846,1724619032445,-1074.67985343,0.00010699,2]
[335934848,1724619032454,-500.0,0.000107,2]
[335934850,1724619032464,-150.99,0.000107,2]
[335934852,1724619032475,-499.99,0.000107,2]
[335934854,1724619032485,-957.48,0.000107,2]
[335934856,1724619032495,-150.99,0.000107,2]
[335934858,1724619032503,-499.99,0.000107,2]
[335934860,1724619032515,-1250.89,0.000107,2]
[335934862,1724619032523,-500.0,0.00010709,2]
[335934864,1724619032532,-150.0,0.00010712,2]
[335934866,1724619032541,-150.0,0.00010716,2]
[335934868,1724619032551,-500.0,0.00010717,2]
[335934870,1724619032560,-13781.09,0.00010717,2]
[335934872,1724619032570,-1136.01,0.00010717,2]
[335934873,1724619032579,-500.0,0.00010726,2]
[335934874,1724619032588,-500.0,0.00010735,2]
[335934875,1724619032598,-500.0,0.00010744,2]
[335934876,1724619032607,-500.0,0.00010753,2]
[335934877,1724619032617,-500.0,0.00010761,2]
[335934878,1724619032628,-500.0,0.0001077,2]
[335934879,1724619032637,-500.0,0.00010779,2]
[335934880,1724619032648,-500.0,0.00010788,2]
[335934881,1724619032658,-290.7645,0.0001079,2]
[335934882,1724619032667,-1340.32,0.0001079,2]
[335934883,1724619032676,-500.0,0.00010797,2]
[335934884,1724619032686,-500.0,0.00010805,2]
[335934885,1724619032696,-500.0,0.00010814,2]
[335934886,1724619032705,-500.0,0.00010823,2]
[335934887,1724619032715,-500.0,0.00010832,2]
[335934888,1724619032725,-500.0,0.00010841,2]
[335934889,1724619032734,-500.0,0.00010849,2]
[335934890,1724619032743,-485.69288654,0.00010852,2]
[335934891,1724619032753,-380.32741541,0.00010852,2]
[335934892,1724619032763,-155.0,0.00010852,2]
[335934893,1724619032939,-155.29275955,0.00010852,2]
[335934894,1724619032950,-500.0,0.00010858,2]
[335934895,1724619032959,-649.1199,0.00010859,2]
[335934896,1724619032969,-547.52651326,0.00010861,2]
[335934897,1724619032979,-155.17072618,0.00010861,2]
[335934898,1724619032988,-203.98508423,0.00010861,2]
[335934899,1724619032998,-218.91005949,0.00010861,2]
[335934900,1724619033008,-159.80258689,0.00010861,2]
[335934901,1724619033018,-357.45302385,0.00010861,2]
[335934902,1724619033028,-203.41395605,0.00010861,2]
[335934903,1724619033038,-155.0,0.00010861,2]
[335934904,1724619033048,-309.64483127,0.00010861,2]
[335934905,1724619033058,-236.34424982,0.00010862,2]
[335934906,1724619033068,-432.47832469,0.00010862,2]
[335934907,1724619033078,-454.91971537,0.00010862,2]
[335934908,1724619033088,-164.54862411,0.00010862,2]
[335934909,1724619033100,-314.96684325,0.00010862,2]
[335934910,1724619033111,-328.33768382,0.00010862,2]
[335934911,1724619033121,-210.6709452,0.00010862,2]
[335934912,1724619033131,-500.0,0.00010867,2]
[335934913,1724619033141,-635.73386,0.0001087,2]
[335934914,1724619033150,-500.0,0.00010876,2]
[335934915,1724619033159,-12889.098,0.00010876,2]
[335934916,1724619033169,-500.0,0.00010885,2]
[335934917,1724619033181,-529.01492508,0.00010888,2]
[335934918,1724619033191,-155.0,0.00010888,2]
[335934919,1724619033201,-1592.06824958,0.0001089,2]
[335934920,1724619033210,-9182.1504,0.0001089,2]
[335934921,1724619033220,-443.0938,0.0001089,2]
[335934922,1724619033230,-483.0291,0.0001089,2]
[335934923,1724619033241,-1000.0,0.0001089,2]
[335934924,1724619033251,-4080.63979253,0.00010899,2]
[335934925,1724619033260,-4080.63979244,0.00010899,2]
[335934926,1724619033270,-4080.63979244,0.00010899,2]
[335934927,1724619033280,-4080.63979244,0.00010899,2]
[335934928,1724619033289,-4080.63979244,0.00010899,2]
[335934929,1724619033298,-4080.63979244,0.00010899,2]
[335934930,1724619033307,-4080.63979244,0.00010899,2]
[335934931,1724619033317,-4080.63979244,0.00010899,2]
[335934932,1724619033326,-4080.63979244,0.00010899,2]
[335934933,1724619033336,-2824.204191,0.000109,2]
[335934934,1724619033346,-301.15,0.000109,2]
[335934935,1724619033355,-2070.61010565,0.000109,2]
[335934936,1724619033364,-174.29338501,0.000109,2]
[335934937,1724619033374,-4080.63979244,0.000109,2]
[335934938,1724619033383,-500.0,0.00010911,2]
[335934939,1724619033393,-500.0,0.00010911,2]
[335934940,1724619033402,-500.0,0.00010911,2]
[335934941,1724619033412,-500.0,0.00010911,2]
[335934942,1724619033421,-500.0,0.00010911,2]
[335934943,1724619033430,-500.0,0.00010912,2]
[335934944,1724619033440,-500.0,0.00010912,2]
[335934945,1724619033449,-500.0,0.00010912,2]
[335934946,1724619033458,-500.0,0.00010912,2]
[335934947,1724619033468,-500.0,0.00010912,2]
[335934948,1724619033477,-500.0,0.00010912,2]
[335934949,1724619033486,-500.0,0.00010912,2]
[335934950,1724619033496,-500.0,0.00010912,2]
[335934951,1724619033505,-500.0,0.00010912,2]
[335934952,1724619033514,-500.0,0.00010912,2]
[335934953,1724619033523,-500.0,0.00010912,2]
[335934954,1724619033533,-500.0,0.00010912,2]
[335934955,1724619033543,-500.0,0.00010912,2]
[335934956,1724619033552,-500.0,0.00010958,2]
[335934957,1724619033562,-254.08458239,0.00010958,2]
[335934958,1724619033572,-500.0,0.00010958,2]
[335934959,1724619033582,-500.0,0.00010958,2]
[335934960,1724619033592,-253.47652751,0.00010958,2]
[335934961,1724619033602,-500.0,0.00010958,2]
[335934962,1724619033613,-500.0,0.00010958,2]
[335934963,1724619033623,-500.0,0.00010958,2]
[335934964,1724619033633,-548.68914803,0.00010958,2]
[335934965,1724619033643,-500.0,0.00010958,2]
[335934966,1724619033654,-500.0,0.00010958,2]
[335934967,1724619033664,-500.0,0.00010958,2]
[335934968,1724619033674,-500.0,0.00010959,2]
[335934969,1724619033686,-200.0,0.00010959,2]
[335934970,1724619033698,-200.0,0.00010959,2]
[335934971,1724619033709,-200.0,0.00010959,2]
[335934972,1724619033720,-200.0,0.00010959,2]
[335934973,1724619033729,-200.0,0.00010959,2]
[335934974,1724619033739,-200.0,0.00010959,2]
[335934975,1724619033749,-200.0,0.00010959,2]
[335934976,1724619033759,-200.0,0.00010959,2]
[335934977,1724619033769,-200.0,0.00010959,2]
[335934978,1724619033779,-158.39,0.00010959,2]
[335934979,1724619033789,-1500.0,0.00010959,2]
[335934980,1724619033799,-2000.0,0.00010959,2]
[335934981,1724619033808,-150.0,0.00010959,2]
[335934982,1724619033818,-2781.54,0.00010959,2]
[335934983,1724619033828,-9842.47,0.00010959,2]
[335934984,1724619033838,-250.0,0.00010959,2]
[335934985,1724619033847,-846.04,0.00010959,2]
[335934986,1724619033857,-500.0,0.00010973,2]
[335934987,1724619033867,-200.0,0.00010973,2]
[335934988,1724619033876,-200.0,0.00010973,2]
[335934989,1724619033887,-2159.9401716,0.00010979,2]
[335934990,1724619033897,-288.1456691,0.00010989,2]
[335934991,1724619033907,-500.0,0.00010989,2]
[335934992,1724619033916,-500.0,0.00010989,2]
[335934993,1724619033925,-500.0,0.00010989,2]
[335934994,1724619033935,-500.0,0.00010989,2]
[335934995,1724619033947,-500.0,0.00010989,2]
[335934996,1724619033956,-400.04482558,0.00010989,2]
[335934997,1724619033966,-500.0,0.00010989,2]
[335934998,1724619033976,-500.0,0.00010989,2]
[335934999,1724619033986,-500.0,0.00010989,2]
[335935000,1724619033996,-500.0,0.00010989,2]
[335935001,1724619034005,-500.0,0.00010989,2]
[335935002,1724619034015,-195.94232903,0.00010989,2]
[335935003,1724619034024,-500.0,0.00010989,2]
[335935004,1724619034033,-500.0,0.00010989,2]
[335935005,1724619034042,-500.0,0.00010989,2]
[335935006,1724619034052,-500.0,0.00010989,2]
[335935007,1724619034061,-500.0,0.00010989,2]
[335935008,1724619034070,-500.0,0.00010989,2]
[335935009,1724619034079,-500.0,0.00010989,2]
[335935010,1724619034089,-500.0,0.00010989,2]
[335935011,1724619034100,-500.0,0.00010989,2]
[335935012,1724619034110,-500.0,0.00010989,2]
[335935013,1724619034119,-500.0,0.00010989,2]
[335935014,1724619034129,-500.0,0.00010989,2]
[335935015,1724619034138,-319.03079519,0.00010989,2]
[335935016,1724619034152,-180.96920481,0.00010989,2]
[335935017,1724619034161,-500.0,0.00010989,2]
[335935018,1724619034170,-500.0,0.00010989,2]
[335935019,1724619034180,-239.64422203,0.00010989,2]
[335935020,1724619034192,-500.0,0.00010989,2]
[335935021,1724619034202,-500.0,0.00010989,2]
[335935022,1724619034211,-500.0,0.00010989,2]
[335935023,1724619034220,-402.72070823,0.00010989,2]
[335935024,1724619034230,-500.0,0.00010989,2]
[335935025,1724619034240,-172.06136306,0.00010989,2]
[335935026,1724619034249,-500.0,0.00010989,2]
[335935027,1724619034259,-500.0,0.00010989,2]
[335935028,1724619034269,-500.0,0.00010989,2]
[335935029,1724619034279,-553.64382277,0.00010989,2]
[335935030,1724619034288,-500.0,0.00010989,2]
[335935031,1724619034298,-500.0,0.00010989,2]
[335935032,1724619034307,-220.63546901,0.00010989,2]
[335935033,1724619034316,-4237.04457328,0.00010989,2]
[335935034,1724619038045,-2357.51161736,0.00010426,2]
[335935036,1724619038057,-155.0,0.00010861,2]
[335935038,1724619038066,-365.91742403,0.00010862,2]
[335935039,1724619038075,-155.0,0.00010862,2]
[335935040,1724619038085,-10576.4976708,0.00010989,2]
[335935041,1724619038097,-500.0,0.00010989,2]
[335935042,1724619038111,-500.0,0.00010989,2]
[335935043,1724619038120,-500.0,0.00010989,2]
[335935044,1724619038130,-500.0,0.00010989,2]
[335935045,1724619038140,-500.0,0.00010989,2]
[335935046,1724619038151,-500.0,0.00010989,2]
[335935047,1724619038163,-2342.45587798,0.00010989,2]
[335935048,1724619038173,-82258.31168958,0.0001099,3]
[335935049,1724619038184,-283.83287331,0.0001099,3]
[335935050,1724619038195,-330.84677873,0.0001099,3]
[335935051,1724619038206,-12573.41437419,0.0001099,3]
[335935052,1724619038217,-2348.40046312,0.0001099,3]
[335935053,1724619038233,-1185.34288774,0.0001099,3]
[335935054,1724619038269,-229472.08089231,0.0001099,3]
[335935055,1724619038278,-288.1456691,0.0001099,2]
[335935056,1724619038287,-288.1456691,0.0001099,2]
[335935057,1724619038296,-500.0,0.0001099,2]
[335935058,1724619038305,-250.816,0.00010997,2]
[335935059,1724619038314,-1524.043,0.00010997,2]
[335935060,1724619038323,-3124.862,0.00010997,2]
[335935061,1724619038333,-289.0,0.00010997,2]
[335935062,1724619038343,-265.439,0.00010997,2]
[335935063,1724619038352,-155.29391757,0.00010997,2]
[335935064,1724619038361,-621.17567028,0.00010997,2]
[335935065,1724619038370,-1000.0,0.00010999,2]
[335935066,1724619038379,-1000.0,0.00010999,2]
[335935067,1724619038388,-1000.0,0.00010999,2]
[335935068,1724619038397,-1000.0,0.00010999,2]
[335935069,1724619038407,-1000.0,0.00010999,2]
[335935070,1724619038415,-500.0,0.00010999,2]
[335935071,1724619038425,-150.01,0.00010999,2]
[335935072,1724619038434,-2823.46153911,0.00010999,2]
[335935074,1724619038444,-500.0,0.00010999,2]
[335935076,1724619038454,-500.0,0.00010999,2]
[335935078,1724619038463,-500.0,0.00010999,2]
[335935080,1724619038472,-500.0,0.00010999,2]
[335935082,1724619038481,-500.0,0.00010999,2]
[335935083,1724619038491,-500.0,0.00010999,2]
[335935084,1724619038500,-500.0,0.00010999,2]
[335935085,1724619038510,-500.0,0.00010999,2]
[335935086,1724619038519,-500.0,0.00010999,2]
[335935087,1724619038528,-500.0,0.00010999,2]
[335935088,1724619038538,-500.0,0.00010999,2]
[335935089,1724619038547,-500.0,0.00010999,2]
[335935090,1724619038557,-500.0,0.00010999,2]
[335935091,1724619038566,-1000.0,0.00010999,2]
[335935092,1724619038576,-355.1518638,0.00010999,2]
[335935093,1724619038585,-529.25000006,0.00010999,2]
[335935094,1724619038594,-500.0,0.00010999,2]
[335935095,1724619038604,-500.0,0.00010999,2]
[335935096,1724619038613,-500.0,0.00010999,2]
[335935097,1724619038623,-500.0,0.00010999,2]
[335935098,1724619038632,-500.0,0.00010999,2]
[335935099,1724619038642,-500.0,0.00010999,2]
[335935100,1724619038652,-493.9763717,0.00010999,2]
[335935101,1724619038661,-500.0,0.00010999,2]
[335935102,1724619038671,-500.0,0.00010999,2]
[335935103,1724619038680,-500.0,0.00010999,2]
[335935104,1724619038691,-500.0,0.00010999,2]
[335935105,1724619038701,-500.0,0.00010999,2]
[335935106,1724619038710,-500.0,0.00010999,2]
[335935107,1724619038720,-500.0,0.00010999,2]
[335935108,1724619038729,-408.27729176,0.00010999,2]
[335935109,1724619038739,-500.0,0.00010999,2]
[335935110,1724619038749,-500.0,0.00010999,2]
[335935111,1724619038758,-500.0,0.00010999,2]
[335935112,1724619038768,-500.0,0.00010999,2]
[335935113,1724619038778,-500.0,0.00010999,2]
[335935114,1724619038788,-250.4,0.00010999,2]
[335935115,1724619038797,-500.0,0.00010999,2]
[335935116,1724619038806,-500.0,0.00010999,2]
[335935117,1724619038816,-500.0,0.00010999,2]
[335935118,1724619038825,-500.0,0.00010999,2]
[335935119,1724619038835,-317.10742205,0.00010999,2]
[335935120,1724619038844,-601.97,0.00010999,2]
[335935121,1724619038853,-500.0,0.00010999,2]
[335935122,1724619038863,-500.0,0.00010999,2]
[335935123,1724619038872,-234.86166826,0.00010999,2]
[335935124,1724619038882,-500.0,0.00010999,2]
[335935125,1724619038891,-500.0,0.00010999,2]
[335935126,1724619038900,-500.0,0.00010999,2]
[335935127,1724619038910,-500.0,0.00010999,2]
[335935128,1724619038919,-499.0,0.00010999,2]
[335935129,1724619038929,-216843.84430589,0.00011,2]
[335935130,1724619038939,-100202.89115742,0.00011,2]
[335935131,1724619038951,-287.75747,0.00011,2]
[335935132,1724619038962,-6903.18681663,0.00011,2]
[335935134,1724619040308,-478.89315728,0.00011,2]
[335935135,1724619040320,-2331.80963779,0.00011,2]
[335935136,1724619040331,-400.07483383,0.00011,2]
[335935137,1724619040341,-745.83403878,0.00011,2]
[335935138,1724619040352,-4478.60274475,0.00011,2]
[335935154,1724619043170,-320.30056244,0.0001089,2]
[335935155,1724619043182,-5.31206869,0.00010999,2]
[335935158,1724619046077,-1406.41870086,0.00010999,2]
[335935159,1724619046086,-30.91254894,0.00011,2]
[335935160,1724619046189,-14911.63738435,0.00011,2]
[335935161,1724619046202,-422.69862913,0.00011,2]
[335935162,1724619046248,-34122.82679676,0.00011,2]
[335935163,1724619046260,-359.82502915,0.00011,2]
[335935164,1724619265859,359.17,8.347e-05,2]
[335935165,1724619465545,209.36,9.971e-05,2]
[335935166,1724619509496,649.86351287,0.00010009,2]
[335935167,1724619528283,540.11,9.932e-05,2]
[335935168,1724619598596,454.91971537,0.00010009,2]
[335935169,1724619677371,484.99875932,0.00010009,2]
[335935170,1724619714520,1000.0,9.919e-05,2]
[335935171,1724619715774,228.65,9.919e-05,2]
[335935172,1724619715832,170.63554743,0.00010009,2]
[335935173,1724619771610,356.24,8.219e-05,2]
[335935174,1724619864583,302.51481159,9.962e-05,2]
[335935175,1724619906307,33932.84377312,0.00010009,2]
[335935176,1724619963173,232.51,9.924e-05,2]
[335935177,1724620038926,527.19740296,0.00010009,2]
[335935178,1724620120240,250.0,9.933e-05,2]
[335935193,1724620223548,2112.88261414,0.00010009,2]
[335935196,1724620232190,-356.24,0.00010474,2]
[335935197,1724620232200,-58.98091175,0.00010603,2]
[335935198,1724620232253,-441.01908825,0.00010603,2]
[335935199,1724620232264,-500.0,0.00010612,2]
[335935200,1724620232276,-500.0,0.00010621,2]
[335935201,1724620232286,-75.18668974,0.00010629,2]
[335935202,1724620232298,-424.81331026,0.00010629,2]
[335935203,1724620232308,-367.97813713,0.00010638,2]
[335935204,1724620232320,-132.02186287,0.00010638,2]
[335935205,1724620232329,-500.0,0.00010647,2]
[335935206,1724620232339,-500.0,0.00010656,2]
[335935207,1724620232348,-410.75924007,0.00010656,2]
[335935208,1724620232361,-89.23075993,0.00010656,2]
[335935209,1724620232370,-300.0,0.00010696,2]
[335935210,1724620232380,-299.99,0.00010697,2]
[335935211,1724620232389,-150.99,0.00010697,2]
[335935212,1724620232399,-1484.33,0.00010697,2]
[335935213,1724620232408,-2266.90524007,0.00010713,2]
[335935214,1724620232420,-2534.49347631,0.00010713,2]
[335935215,1724620232429,-485.40726798,0.00010799,2]
[335935216,1724620232439,-155.0,0.00010799,2]
[335935217,1724620232449,-134.08925571,0.00010799,2]
[335935218,1724620232461,-30.3133523,0.00010799,2]
[335935219,1724620232470,-270.90595203,0.00010799,2]
[335935220,1724620232480,-270.90595203,0.00010852,2]
[335935221,1724620232489,-772.59419093,0.00010852,2]
[335935222,1724620232498,-261.66637701,0.00010852,2]
[335935223,1724620232507,-212.61607394,0.00010861,2]
[335935224,1724620232516,-484.47147914,0.00010862,2]
[335935225,1724620232526,-328.18367674,0.00010888,2]
[335935226,1724620232535,-159.41435375,0.00010888,2]
[335935227,1724620232544,-158.93346,0.0001089,2]
[335935228,1724620232554,-155.0,0.0001089,2]
[335935229,1724620232564,-155.0,0.0001089,2]
[335935230,1724620232573,-309.31339889,0.0001089,2]
[335935231,1724620232582,-160.60814101,0.00010899,2]
[335935232,1724620232591,-539.72896222,0.000109,2]
[335935233,1724620232605,-500.0,0.00010911,2]
[335935234,1724620232615,-500.0,0.00010911,2]
[335935235,1724620232624,-500.0,0.00010912,2]
[335935236,1724620232633,-500.0,0.00010912,2]
[335935237,1724620232642,-163.74463001,0.00010912,2]
[335935238,1724620232655,-336.25536999,0.00010912,2]
[335935239,1724620232664,-114.46485032,0.00010912,2]
[335935240,1724620232679,-385.53514968,0.00010912,2]
[335935241,1724620232689,-200.0,0.00010959,2]
[335935242,1724620232698,-200.0,0.00010959,2]
[335935243,1724620232707,-146.05501532,0.00010959,2]
[335935244,1724620232719,-53.94498468,0.00010959,2]
[335935245,1724620232729,-162.55,0.00010959,2]
[335935246,1724620232738,-159.27,0.00010959,2]
[335935247,1724620232749,-93.25907798,0.00010959,2]
[335935248,1724620232760,-1406.74092202,0.00010959,2]
[335935249,1724620232770,-150.0,0.00010959,2]
[335935250,1724620232780,-500.0,0.00010973,2]
[335935251,1724620232789,-1743.33731681,0.00010979,2]
[335935252,1724620232798,-347.79523898,0.00010979,2]
[335935253,1724620232808,-135.98109719,0.00010981,2]
[335935254,1724620232820,-364.01890281,0.00010981,2]
[335935255,1724620232830,-32.46126891,0.0001099,2]
[335935256,1724620232841,-183.64798293,0.0001099,2]
[335935257,1724620232850,-216.10925184,0.0001099,2]
[335935258,1724620232860,-500.0,0.0001099,2]
[335935259,1724620232870,-1304.94718897,0.00010997,2]
[335935264,1724620238463,-1139.23686426,0.00010799,2]
[335935265,1724620238473,-164.16456596,0.00010888,2]
[335935266,1724620238482,-264.66383924,0.00010888,2]
[335935267,1724620238492,-155.0,0.00010888,2]
[335935268,1724620238501,-238.77479362,0.0001089,2]
[335935269,1724620238510,-1024.46157449,0.00010997,2]
[335935270,1724620238520,-1411.73076955,0.00010999,2]
[335935271,1724620238529,-1892.65,0.00010999,2]
[335935272,1724620238538,-154.81759288,0.00010999,2]
[335935280,1724620240642,-345.18240712,0.00010999,2]
[335935281,1724620240651,-322.22720284,0.00010999,2]
[335935282,1724620240660,-943.23466966,0.00011,2]
[335935283,1724620240673,-971.334,0.00011,2]
[335935305,1724620246261,-500.45820004,0.00011,2]
[335935310,1724620271479,1000.082606,0.00027,120]
[335935311,1724620273448,1000.082606,0.00027,120]